[Event "*** Titled Tuesday Blitz"]
[Site "Chess.com"]
[Date "2021.04.20"]
[Round "8"]
[White "Zhigalko_Sergei"]
[Black "platy3"]
[Result "1-0"]
[WhiteElo "2929"]
[BlackElo "2837"]
[TimeControl "180+1"]
[EndTime "11:25:50 PDT"]
[Termination "Zhigalko_Sergei won by resignation"]

1. e4 {[%clk 0:03:00.9]} 1... c5 {[%clk 0:02:58.6]} 2. Nf3 {[%clk 0:03:00.1]}
2... e6 {[%clk 0:02:59]} 3. c3 {[%clk 0:03:00.4]} 3... Nf6 {[%clk 0:02:57]} 4.
e5 {[%clk 0:03:00.7]} 4... Nd5 {[%clk 0:02:57.5]} 5. Bc4 {[%clk 0:03:01.2]} 5...
Nc6 {[%clk 0:02:56.8]} 6. d4 {[%clk 0:03:01.3]} 6... cxd4 {[%clk 0:02:56.2]} 7.
cxd4 {[%clk 0:03:02.2]} 7... d6 {[%clk 0:02:56.7]} 8. O-O {[%clk 0:03:02.3]}
8... Be7 {[%clk 0:02:57]} 9. Bd2 {[%clk 0:03:02.9]} 9... O-O {[%clk 0:02:49.8]}
10. Nc3 {[%clk 0:03:03]} 10... Nxc3 {[%clk 0:02:25.2]} 11. Bxc3 {[%clk
0:03:02.4]} 11... dxe5 {[%clk 0:02:25.7]} 12. dxe5 {[%clk 0:03:03.3]} 12... Qxd1
{[%clk 0:02:25.3]} 13. Rfxd1 {[%clk 0:03:04.2]} 13... Rd8 {[%clk 0:02:25.8]} 14.
Rxd8+ {[%clk 0:03:04]} 14... Bxd8 {[%clk 0:02:25.8]} 15. Rd1 {[%clk 0:03:04.9]}
15... Be7 {[%clk 0:02:24.9]} 16. Bd3 {[%clk 0:02:59.6]} 16... h6 {[%clk
0:02:18.7]} 17. Be4 {[%clk 0:02:58.8]} 17... Kf8 {[%clk 0:02:15.9]} 18. Nd2
{[%clk 0:02:31]} 18... Ke8 {[%clk 0:02:10.6]} 19. Nc4 {[%clk 0:02:30.3]} 19...
Bd7 {[%clk 0:02:10.7]} 20. Nd6+ {[%clk 0:02:24]} 20... Bxd6 {[%clk 0:02:10.6]}
21. exd6 {[%clk 0:02:24.9]} 21... f6 {[%clk 0:02:07.7]} 22. f4 {[%clk
0:02:24.6]} 22... Rc8 {[%clk 0:02:06]} 23. Bg6+ {[%clk 0:02:21.1]} 23... Kf8
{[%clk 0:02:02.6]} 24. g4 {[%clk 0:02:17.4]} 24... Nd8 {[%clk 0:01:58.6]} 25.
Kf2 {[%clk 0:02:02.6]} 25... Rc4 {[%clk 0:01:46.3]} 26. Ke3 {[%clk 0:01:56.1]}
26... Rc8 {[%clk 0:01:07.4]} 27. h4 {[%clk 0:01:52.6]} 27... Rc4 {[%clk
0:01:06.7]} 28. g5 {[%clk 0:00:52.7]} 28... hxg5 {[%clk 0:00:44.6]} 29. hxg5
{[%clk 0:00:52.7]} 29... fxg5 {[%clk 0:00:45.3]} 30. fxg5 {[%clk 0:00:52.5]}
30... Rg4 {[%clk 0:00:45.9]} 31. Rh1 {[%clk 0:00:52.7]} 31... Kg8 {[%clk
0:00:46]} 32. Bh7+ {[%clk 0:00:42.2]} 32... Kf7 {[%clk 0:00:37.3]} 33. Rf1+
{[%clk 0:00:40.3]} 33... Ke8 {[%clk 0:00:37.2]} 34. Bg6+ {[%clk 0:00:40.3]} 1-0

[Event "*** Titled Tuesday Blitz"]
[Site "Chess.com"]
[Date "2021.04.20"]
[Round "8"]
[White "draksbg"]
[Black "Vaathi_Coming"]
[Result "1-0"]
[WhiteElo "2596"]
[BlackElo "2898"]
[TimeControl "180+1"]
[EndTime "11:25:52 PDT"]
[Termination "draksbg won by checkmate"]

1. e4 {[%clk 0:02:55.3]} 1... e5 {[%clk 0:02:59.7]} 2. Nf3 {[%clk 0:02:52.8]}
2... Nc6 {[%clk 0:03:00]} 3. Bb5 {[%clk 0:02:51.6]} 3... a6 {[%clk 0:03:00.1]}
4. Ba4 {[%clk 0:02:51.4]} 4... Nf6 {[%clk 0:03:00]} 5. O-O {[%clk 0:02:50.7]}
5... b5 {[%clk 0:03:00.2]} 6. Bb3 {[%clk 0:02:50.7]} 6... Bc5 {[%clk 0:03:00.5]}
7. c3 {[%clk 0:02:48.9]} 7... d6 {[%clk 0:03:00.6]} 8. d4 {[%clk 0:02:47.2]}
8... Bb6 {[%clk 0:02:59.8]} 9. Re1 {[%clk 0:02:46.9]} 9... Bg4 {[%clk
0:02:56.8]} 10. Bg5 {[%clk 0:02:41.6]} 10... Rb8 {[%clk 0:02:44.5]} 11. Nbd2
{[%clk 0:02:36.3]} 11... h6 {[%clk 0:02:38]} 12. Bh4 {[%clk 0:02:36.2]} 12...
O-O {[%clk 0:02:32.4]} 13. h3 {[%clk 0:02:33.8]} 13... Bh5 {[%clk 0:02:31.8]}
14. Bd5 {[%clk 0:02:29.3]} 14... Ne7 {[%clk 0:02:25.7]} 15. Bxf6 {[%clk
0:02:28.5]} 15... gxf6 {[%clk 0:02:26.6]} 16. Bb3 {[%clk 0:02:27.2]} 16... Kh8
{[%clk 0:02:08.3]} 17. Nf1 {[%clk 0:02:25.1]} 17... Rg8 {[%clk 0:01:54.1]} 18.
Ng3 {[%clk 0:02:24.7]} 18... Bg6 {[%clk 0:01:54.5]} 19. Nh4 {[%clk 0:02:23.3]}
19... Qd7 {[%clk 0:01:28]} 20. Qf3 {[%clk 0:02:22.3]} 20... Kg7 {[%clk 0:01:22]}
21. Rad1 {[%clk 0:02:20.6]} 21... a5 {[%clk 0:01:15.8]} 22. Nh5+ {[%clk
0:02:10.5]} 22... Bxh5 {[%clk 0:01:13.8]} 23. Qxh5 {[%clk 0:02:08.9]} 23... Kh7
{[%clk 0:00:41.1]} 24. Qxf7+ {[%clk 0:02:03.3]} 24... Rg7 {[%clk 0:00:41.3]} 25.
Qxf6 {[%clk 0:02:04]} 25... exd4 {[%clk 0:00:19.6]} 26. cxd4 {[%clk 0:02:02.6]}
26... a4 {[%clk 0:00:20]} 27. Be6 {[%clk 0:02:02.5]} 27... Qe8 {[%clk
0:00:19.8]} 28. e5 {[%clk 0:01:59.6]} 28... Qf8 {[%clk 0:00:19]} 29. Re3 {[%clk
0:01:47.8]} 29... dxe5 {[%clk 0:00:16.3]} 30. Qxe5 {[%clk 0:01:41.5]} 30... Rd8
{[%clk 0:00:04.5]} 31. Rf3 {[%clk 0:01:39.1]} 31... Qe8 {[%clk 0:00:04.7]} 32.
Rf6 {[%clk 0:01:34.7]} 32... Rd6 {[%clk 0:00:01.6]} 33. Qf4 {[%clk 0:01:34.6]}
33... Ng6 {[%clk 0:00:01.6]} 34. Nf5 {[%clk 0:01:28.1]} 34... Rxe6 {[%clk
0:00:01.3]} 35. Qxh6+ {[%clk 0:01:23.7]} 35... Kg8 {[%clk 0:00:01.6]} 36. Qxg7#
{[%clk 0:01:24.2]} 1-0

[Event "*** Titled Tuesday Blitz"]
[Site "Chess.com"]
[Date "2021.04.20"]
[Round "8"]
[White "731291"]
[Black "zubridis"]
[Result "0-1"]
[WhiteElo "2675"]
[BlackElo "2558"]
[TimeControl "180+1"]
[EndTime "11:25:53 PDT"]
[Termination "zubridis won by resignation"]

1. e4 {[%clk 0:02:51.7]} 1... c5 {[%clk 0:02:59.4]} 2. Nc3 {[%clk 0:02:50.8]}
2... g6 {[%clk 0:02:57]} 3. Nf3 {[%clk 0:02:50.4]} 3... Bg7 {[%clk 0:02:57]} 4.
h4 {[%clk 0:02:49]} 4... Nc6 {[%clk 0:02:52.6]} 5. h5 {[%clk 0:02:49.1]} 5... d6
{[%clk 0:02:45.2]} 6. Bc4 {[%clk 0:02:48.7]} 6... e6 {[%clk 0:02:43.4]} 7. d3
{[%clk 0:02:48.8]} 7... Nge7 {[%clk 0:02:40.7]} 8. h6 {[%clk 0:02:46.7]} 8...
Bf6 {[%clk 0:02:39.7]} 9. Bf4 {[%clk 0:02:45]} 9... a6 {[%clk 0:02:35.4]} 10. a4
{[%clk 0:02:44.5]} 10... Ne5 {[%clk 0:02:24.3]} 11. Nxe5 {[%clk 0:02:41]} 11...
Bxe5 {[%clk 0:02:22.4]} 12. Bxe5 {[%clk 0:02:40.9]} 12... dxe5 {[%clk
0:02:22.3]} 13. Qf3 {[%clk 0:02:40.7]} 13... Nc6 {[%clk 0:02:20.2]} 14. Ne2
{[%clk 0:02:41.1]} 14... Qg5 {[%clk 0:02:10]} 15. Qe3 {[%clk 0:02:30.9]} 15...
Qxe3 {[%clk 0:02:01.3]} 16. fxe3 {[%clk 0:02:31.8]} 16... Ke7 {[%clk 0:02:00.4]}
17. O-O {[%clk 0:02:28.4]} 17... b6 {[%clk 0:01:58.3]} 18. Rf2 {[%clk
0:02:16.6]} 18... f6 {[%clk 0:01:56.3]} 19. c3 {[%clk 0:02:06.4]} 19... Ra7
{[%clk 0:01:52.2]} 20. d4 {[%clk 0:02:05.3]} 20... Rd7 {[%clk 0:01:34.6]} 21.
Raf1 {[%clk 0:01:56.5]} 21... Rf8 {[%clk 0:01:32.4]} 22. d5 {[%clk 0:01:40.8]}
22... Na5 {[%clk 0:01:31.1]} 23. Ba2 {[%clk 0:01:36.6]} 23... c4 {[%clk
0:01:27.5]} 24. Ng3 {[%clk 0:01:31.5]} 24... exd5 {[%clk 0:01:23.8]} 25. exd5
{[%clk 0:01:32.4]} 25... Rxd5 {[%clk 0:01:22.9]} 26. Ne4 {[%clk 0:01:31.8]}
26... Bf5 {[%clk 0:01:17.1]} 27. Ng3 {[%clk 0:01:28.5]} 27... Bd3 {[%clk
0:01:16.7]} 28. Re1 {[%clk 0:01:28.2]} 28... e4 {[%clk 0:01:13.3]} 29. Ne2
{[%clk 0:01:25.7]} 29... Bxe2 {[%clk 0:01:13.2]} 30. Rexe2 {[%clk 0:01:26.5]}
30... Rfd8 {[%clk 0:01:10.1]} 31. Kh2 {[%clk 0:01:25.8]} 31... Rh5+ {[%clk
0:01:08.3]} 32. Kg3 {[%clk 0:01:25.2]} 32... Rxh6 {[%clk 0:01:07.8]} 33. Rd2
{[%clk 0:01:25.7]} 33... Rd3 {[%clk 0:01:06]} 34. Bb1 {[%clk 0:01:23.7]} 34...
Rh5 {[%clk 0:01:01.5]} 35. Kf4 {[%clk 0:01:20.5]} 35... Re5 {[%clk 0:00:55.5]}
36. Bxd3 {[%clk 0:01:09.8]} 36... cxd3 {[%clk 0:00:55.2]} 37. g4 {[%clk
0:01:08.6]} 37... Nc4 {[%clk 0:00:49.3]} 38. b3 {[%clk 0:01:05.3]} 38... g5+
{[%clk 0:00:37.7]} 39. Kg3 {[%clk 0:01:05.3]} 39... Nxe3 {[%clk 0:00:37.2]} 40.
c4 {[%clk 0:01:05.4]} 40... a5 {[%clk 0:00:32.7]} 41. Rh2 {[%clk 0:01:03]} 41...
Nf1+ {[%clk 0:00:30.1]} 0-1

[Event "*** Titled Tuesday Blitz"]
[Site "Chess.com"]
[Date "2021.04.20"]
[Round "8"]
[White "Hikaru"]
[Black "amintabatabaei"]
[Result "1-0"]
[WhiteElo "3177"]
[BlackElo "3004"]
[TimeControl "180+1"]
[EndTime "11:25:54 PDT"]
[Termination "Hikaru won by resignation"]

1. Nf3 {[%clk 0:03:00.9]} 1... d5 {[%clk 0:02:58.9]} 2. e3 {[%clk 0:03:00.3]}
2... Nf6 {[%clk 0:02:58.5]} 3. b3 {[%clk 0:02:59.6]} 3... e6 {[%clk 0:02:56]} 4.
Bb2 {[%clk 0:02:59.6]} 4... Be7 {[%clk 0:02:55.6]} 5. d4 {[%clk 0:02:59.9]} 5...
O-O {[%clk 0:02:54.1]} 6. Bd3 {[%clk 0:03:00]} 6... b6 {[%clk 0:02:54.7]} 7. c4
{[%clk 0:02:59.3]} 7... Bb7 {[%clk 0:02:54.3]} 8. Nbd2 {[%clk 0:02:57.9]} 8...
Nbd7 {[%clk 0:02:53.6]} 9. O-O {[%clk 0:02:57.8]} 9... c5 {[%clk 0:02:54.1]} 10.
cxd5 {[%clk 0:02:58]} 10... Nxd5 {[%clk 0:02:52]} 11. a3 {[%clk 0:02:57.1]}
11... cxd4 {[%clk 0:02:44.3]} 12. Nxd4 {[%clk 0:02:56.1]} 12... Rc8 {[%clk
0:02:35]} 13. Rc1 {[%clk 0:02:49.4]} 13... Rxc1 {[%clk 0:02:33.4]} 14. Qxc1
{[%clk 0:02:48.8]} 14... Ne5 {[%clk 0:02:32.9]} 15. Be2 {[%clk 0:02:46.9]} 15...
Qa8 {[%clk 0:02:31.2]} 16. Nxe6 {[%clk 0:02:11]} 16... Rc8 {[%clk 0:02:30.9]}
17. Qa1 {[%clk 0:02:10.6]} 17... fxe6 {[%clk 0:01:57.1]} 18. Bxe5 {[%clk
0:02:09.9]} 18... Rc2 {[%clk 0:01:57.8]} 19. Rd1 {[%clk 0:01:34.4]} 19... Qf8
{[%clk 0:01:57.5]} 20. Bd3 {[%clk 0:01:28.5]} 20... Rc8 {[%clk 0:01:56.8]} 21.
a4 {[%clk 0:01:23.1]} 21... Qf7 {[%clk 0:01:51.6]} 22. Bc4 {[%clk 0:01:19.7]}
22... Rf8 {[%clk 0:01:50.3]} 23. Rf1 {[%clk 0:01:15.9]} 23... Qg6 {[%clk
0:01:48.1]} 24. Bg3 {[%clk 0:00:53.8]} 24... h5 {[%clk 0:01:47.7]} 25. Qb1
{[%clk 0:00:50.6]} 25... Qh6 {[%clk 0:01:36.2]} 26. Qe4 {[%clk 0:00:37.6]} 26...
h4 {[%clk 0:01:31.9]} 27. Bf4 {[%clk 0:00:32.2]} 27... Qf6 {[%clk 0:01:18.2]}
28. Nf3 {[%clk 0:00:25.4]} 28... h3 {[%clk 0:01:08.7]} 29. Ng5 {[%clk
0:00:22.7]} 29... Qf5 {[%clk 0:01:00.5]} 30. Qxe6+ {[%clk 0:00:22.3]} 30... Kh8
{[%clk 0:00:55.3]} 31. Bxd5 {[%clk 0:00:21.8]} 31... Qxd5 {[%clk 0:00:46.4]} 32.
Qxh3+ {[%clk 0:00:21.1]} 1-0

[Event "*** Titled Tuesday Blitz"]
[Site "Chess.com"]
[Date "2021.04.20"]
[Round "8"]
[White "LittleMyMoomin"]
[Black "Frogo47"]
[Result "0-1"]
[WhiteElo "1914"]
[BlackElo "2541"]
[TimeControl "180+1"]
[EndTime "11:25:55 PDT"]
[Termination "Frogo47 won by resignation"]

1. Nf3 {[%clk 0:03:00.9]} 1... Nf6 {[%clk 0:02:59.4]} 2. g3 {[%clk 0:03:01.8]}
2... g6 {[%clk 0:02:59.5]} 3. Bg2 {[%clk 0:03:02.4]} 3... Bg7 {[%clk 0:02:59.2]}
4. O-O {[%clk 0:03:03]} 4... O-O {[%clk 0:02:59.9]} 5. c4 {[%clk 0:03:03.2]}
5... d6 {[%clk 0:03:00.5]} 6. d3 {[%clk 0:03:03.7]} 6... e5 {[%clk 0:03:00.1]}
7. Nc3 {[%clk 0:03:03.8]} 7... Re8 {[%clk 0:02:59.4]} 8. e4 {[%clk 0:03:04.1]}
8... Bg4 {[%clk 0:02:54.4]} 9. h3 {[%clk 0:03:03.3]} 9... Bxf3 {[%clk
0:02:54.9]} 10. Qxf3 {[%clk 0:03:02.7]} 10... Nc6 {[%clk 0:02:55.8]} 11. Be3
{[%clk 0:03:01.5]} 11... Nd7 {[%clk 0:02:55.2]} 12. Nd5 {[%clk 0:02:51.6]} 12...
Nc5 {[%clk 0:02:50.2]} 13. Qe2 {[%clk 0:02:39.4]} 13... Ne6 {[%clk 0:02:49.8]}
14. f4 {[%clk 0:02:36.3]} 14... Ncd4 {[%clk 0:02:50.1]} 15. Qf2 {[%clk
0:02:34.5]} 15... c6 {[%clk 0:02:50.5]} 16. Nc3 {[%clk 0:02:30.5]} 16... Nc5
{[%clk 0:02:47.4]} 17. Rad1 {[%clk 0:02:29]} 17... a5 {[%clk 0:02:46.9]} 18. f5
{[%clk 0:02:26.9]} 18... Qc7 {[%clk 0:02:29.5]} 19. f6 {[%clk 0:02:23]} 19...
Bf8 {[%clk 0:02:28.5]} 20. Ne2 {[%clk 0:02:17.9]} 20... Nc2 {[%clk 0:02:16.2]}
21. Bg5 {[%clk 0:02:08.5]} 21... Nb4 {[%clk 0:02:15.5]} 22. Qe3 {[%clk
0:02:04.8]} 22... Nxa2 {[%clk 0:02:10.6]} 23. Bh6 {[%clk 0:02:04.1]} 23... Ne6
{[%clk 0:01:45.6]} 24. Bxf8 {[%clk 0:01:56.3]} 24... Rxf8 {[%clk 0:01:45.5]} 25.
Qh6 {[%clk 0:01:54.1]} 25... Kh8 {[%clk 0:01:44.5]} 26. Rf2 {[%clk 0:01:47.5]}
26... Rg8 {[%clk 0:01:42.5]} 27. Rdf1 {[%clk 0:01:47.3]} 27... Qd8 {[%clk
0:01:42.5]} 28. h4 {[%clk 0:01:27.3]} 28... Nb4 {[%clk 0:01:40.6]} 29. Rf3
{[%clk 0:01:04]} 29... Qf8 {[%clk 0:01:39.8]} 30. Qe3 {[%clk 0:01:02.2]} 30...
Nc2 {[%clk 0:01:37.4]} 31. Qd2 {[%clk 0:01:02]} 31... Ncd4 {[%clk 0:01:37.8]}
32. R3f2 {[%clk 0:00:55.4]} 32... Nxe2+ {[%clk 0:01:34.7]} 33. Qxe2 {[%clk
0:00:54.2]} 33... a4 {[%clk 0:01:35.6]} 34. h5 {[%clk 0:00:53.4]} 34... Qh6
{[%clk 0:01:35.4]} 35. hxg6 {[%clk 0:00:51.4]} 35... Rxg6 {[%clk 0:01:34.4]} 36.
Rf5 {[%clk 0:00:31.4]} 36... Rxg3 {[%clk 0:01:30.9]} 37. Rh5 {[%clk 0:00:31.4]}
37... Qg6 {[%clk 0:01:30.8]} 38. Rf3 {[%clk 0:00:16.5]} 38... Nd4 {[%clk
0:01:27]} 39. Rxg3 {[%clk 0:00:05.1]} 39... Nxe2+ {[%clk 0:01:26]} 40. Kf2
{[%clk 0:00:05.6]} 40... Nxg3 {[%clk 0:01:23.6]} 0-1

[Event "*** Titled Tuesday Blitz"]
[Site "Chess.com"]
[Date "2021.04.20"]
[Round "8"]
[White "annamaja"]
[Black "alejogarcia1999"]
[Result "0-1"]
[WhiteElo "2285"]
[BlackElo "2462"]
[TimeControl "180+1"]
[EndTime "11:26:02 PDT"]
[Termination "alejogarcia1999 won on time"]

1. e4 {[%clk 0:03:00.9]} 1... c5 {[%clk 0:02:59.2]} 2. Nf3 {[%clk 0:03:00.8]}
2... e6 {[%clk 0:02:59.6]} 3. d4 {[%clk 0:03:01]} 3... cxd4 {[%clk 0:03:00.5]}
4. Nxd4 {[%clk 0:03:01.9]} 4... Nc6 {[%clk 0:03:00.9]} 5. Nc3 {[%clk 0:03:01]}
5... Nf6 {[%clk 0:03:01.2]} 6. g3 {[%clk 0:03:00.6]} 6... d5 {[%clk 0:03:00.4]}
7. Bg2 {[%clk 0:02:53.1]} 7... dxe4 {[%clk 0:02:47.8]} 8. Nxc6 {[%clk
0:02:46.5]} 8... Qxd1+ {[%clk 0:02:38.3]} 9. Kxd1 {[%clk 0:02:34.3]} 9... bxc6
{[%clk 0:02:39.2]} 10. Nxe4 {[%clk 0:02:33.9]} 10... Bb7 {[%clk 0:02:30.8]} 11.
Nxf6+ {[%clk 0:02:23.7]} 11... gxf6 {[%clk 0:02:31.7]} 12. Be3 {[%clk 0:02:24]}
12... O-O-O+ {[%clk 0:02:30.8]} 13. Kc1 {[%clk 0:02:22.1]} 13... Kb8 {[%clk
0:02:21.7]} 14. Rd1 {[%clk 0:02:15.3]} 14... Bg7 {[%clk 0:02:16.7]} 15. c3
{[%clk 0:02:09.1]} 15... Rxd1+ {[%clk 0:01:38.1]} 16. Kxd1 {[%clk 0:02:10]}
16... h5 {[%clk 0:01:38.1]} 17. h4 {[%clk 0:02:02.3]} 17... Bh6 {[%clk
0:01:25.8]} 18. Bc5 {[%clk 0:01:34.9]} 18... Rd8+ {[%clk 0:01:18.7]} 19. Ke1
{[%clk 0:01:29.8]} 19... Rd2 {[%clk 0:01:13.7]} 20. Ba3 {[%clk 0:01:08]} 20...
Ba6 {[%clk 0:01:10.3]} 21. Bf3 {[%clk 0:00:58.1]} 21... Kc7 {[%clk 0:00:56.7]}
22. Bxh5 {[%clk 0:00:53.6]} 22... Rd5 {[%clk 0:00:56.9]} 23. Bf3 {[%clk
0:00:44.2]} 23... Re5+ {[%clk 0:00:57.2]} 24. Kd1 {[%clk 0:00:44.5]} 24... Rf5
{[%clk 0:00:57.6]} 25. Be4 {[%clk 0:00:09.4]} 25... Rxf2 {[%clk 0:00:57]} 26.
Rb1 {[%clk 0:00:03.6]} 26... Rd2+ {[%clk 0:00:47.5]} 27. Ke1 {[%clk 0:00:02.5]}
27... Re2+ {[%clk 0:00:47.8]} 28. Kd1 {[%clk 0:00:02.8]} 28... Rxe4 {[%clk
0:00:48.7]} 0-1

[Event "*** Titled Tuesday Blitz"]
[Site "Chess.com"]
[Date "2021.04.20"]
[Round "8"]
[White "Jospem"]
[Black "ehrenfeld"]
[Result "1-0"]
[WhiteElo "2964"]
[BlackElo "2545"]
[TimeControl "180+1"]
[EndTime "11:26:04 PDT"]
[Termination "Jospem won by checkmate"]

1. e4 {[%clk 0:03:00.9]} 1... e5 {[%clk 0:02:59.3]} 2. Nf3 {[%clk 0:03:00.6]}
2... Nc6 {[%clk 0:02:59.2]} 3. Bb5 {[%clk 0:03:01.1]} 3... a6 {[%clk 0:02:59.1]}
4. Ba4 {[%clk 0:03:01.4]} 4... Nf6 {[%clk 0:02:59.3]} 5. d3 {[%clk 0:03:02.1]}
5... d6 {[%clk 0:02:59]} 6. c3 {[%clk 0:03:02.2]} 6... g6 {[%clk 0:02:59.1]} 7.
h3 {[%clk 0:03:02.8]} 7... Bg7 {[%clk 0:02:59.3]} 8. O-O {[%clk 0:03:03.3]} 8...
O-O {[%clk 0:02:59.2]} 9. Be3 {[%clk 0:03:04]} 9... Bd7 {[%clk 0:02:49.2]} 10.
Nbd2 {[%clk 0:03:02.7]} 10... Re8 {[%clk 0:02:48.2]} 11. Re1 {[%clk 0:03:02.7]}
11... h6 {[%clk 0:02:46]} 12. a3 {[%clk 0:03:01.8]} 12... Nh5 {[%clk 0:02:41.3]}
13. d4 {[%clk 0:03:01.9]} 13... Nf4 {[%clk 0:02:36.4]} 14. Bxf4 {[%clk
0:02:55.5]} 14... exf4 {[%clk 0:02:36.4]} 15. Bc2 {[%clk 0:02:39]} 15... a5
{[%clk 0:02:35.6]} 16. Nf1 {[%clk 0:02:37.4]} 16... Ne7 {[%clk 0:02:28.7]} 17.
N1h2 {[%clk 0:02:35]} 17... a4 {[%clk 0:02:24.9]} 18. Qd2 {[%clk 0:02:33.1]}
18... g5 {[%clk 0:02:24.7]} 19. Qd3 {[%clk 0:02:31.7]} 19... c6 {[%clk
0:02:18.7]} 20. Rad1 {[%clk 0:02:24.1]} 20... d5 {[%clk 0:02:09.2]} 21. e5
{[%clk 0:02:20.7]} 21... Bf5 {[%clk 0:02:09.1]} 22. Qd2 {[%clk 0:02:20.8]} 22...
Bxc2 {[%clk 0:02:09]} 23. Qxc2 {[%clk 0:02:21.7]} 23... Qc8 {[%clk 0:02:02.7]}
24. e6 {[%clk 0:02:05.8]} 24... fxe6 {[%clk 0:01:47.3]} 25. h4 {[%clk
0:02:05.6]} 25... Bf6 {[%clk 0:01:16.5]} 26. Ng4 {[%clk 0:02:04.4]} 26... Kg7
{[%clk 0:01:10.5]} 27. Re2 {[%clk 0:01:45.9]} 27... Ng6 {[%clk 0:00:42.5]} 28.
h5 {[%clk 0:01:37.6]} 28... Nf8 {[%clk 0:00:42]} 29. Rde1 {[%clk 0:01:34.3]}
29... Qc7 {[%clk 0:00:37.6]} 30. Nfe5 {[%clk 0:01:34.1]} 30... Bxe5 {[%clk
0:00:35.2]} 31. Nxe5 {[%clk 0:01:34]} 31... b5 {[%clk 0:00:27.1]} 32. g3 {[%clk
0:01:33.6]} 32... fxg3 {[%clk 0:00:25.5]} 33. fxg3 {[%clk 0:01:34.5]} 33... Re7
{[%clk 0:00:16.3]} 34. Rf1 {[%clk 0:01:34.4]} 34... Kg8 {[%clk 0:00:13.5]} 35.
Ref2 {[%clk 0:01:34.1]} 35... Rg7 {[%clk 0:00:12.6]} 36. Rf6 {[%clk 0:01:34.2]}
36... Re8 {[%clk 0:00:10]} 37. Rxh6 {[%clk 0:01:32.4]} 37... Nd7 {[%clk
0:00:09.7]} 38. Ng6 {[%clk 0:01:06]} 38... Qxg3+ {[%clk 0:00:08.9]} 39. Qg2
{[%clk 0:01:06.7]} 39... Qxg2+ {[%clk 0:00:08.7]} 40. Kxg2 {[%clk 0:01:07.6]}
40... Nf8 {[%clk 0:00:08.1]} 41. Rh8# {[%clk 0:01:07.3]} 1-0

[Event "*** Titled Tuesday Blitz"]
[Site "Chess.com"]
[Date "2021.04.20"]
[Round "8"]
[White "The_filthy"]
[Black "Pelopidass"]
[Result "0-1"]
[WhiteElo "2420"]
[BlackElo "2559"]
[TimeControl "180+1"]
[EndTime "11:26:04 PDT"]
[Termination "Pelopidass won on time"]

1. e4 {[%clk 0:03:00.9]} 1... c5 {[%clk 0:02:58.8]} 2. Nf3 {[%clk 0:03:01.3]}
2... d6 {[%clk 0:02:58.5]} 3. d4 {[%clk 0:03:01.5]} 3... cxd4 {[%clk 0:02:59.4]}
4. Nxd4 {[%clk 0:03:02.3]} 4... Nf6 {[%clk 0:02:59.7]} 5. Nc3 {[%clk 0:03:02.8]}
5... a6 {[%clk 0:03:00]} 6. Be3 {[%clk 0:03:02.7]} 6... e5 {[%clk 0:02:59.4]} 7.
Nb3 {[%clk 0:03:03]} 7... Be7 {[%clk 0:02:58.4]} 8. f3 {[%clk 0:03:03.5]} 8...
Be6 {[%clk 0:02:58.7]} 9. Qd2 {[%clk 0:03:03.8]} 9... h5 {[%clk 0:02:59.1]} 10.
Nd5 {[%clk 0:02:49.8]} 10... Nxd5 {[%clk 0:02:58.2]} 11. exd5 {[%clk 0:02:50.1]}
11... Bf5 {[%clk 0:02:58.5]} 12. c4 {[%clk 0:02:47.6]} 12... a5 {[%clk
0:02:47.6]} 13. Be2 {[%clk 0:02:31.1]} 13... Nd7 {[%clk 0:02:34.8]} 14. O-O
{[%clk 0:02:28.3]} 14... h4 {[%clk 0:02:32]} 15. Nc1 {[%clk 0:02:17.9]} 15...
Bg6 {[%clk 0:02:05.1]} 16. Bd3 {[%clk 0:02:07.4]} 16... Bxd3 {[%clk 0:02:01.8]}
17. Nxd3 {[%clk 0:02:05]} 17... Rc8 {[%clk 0:02:00.2]} 18. Rac1 {[%clk
0:01:57.6]} 18... O-O {[%clk 0:01:57.4]} 19. Kh1 {[%clk 0:01:41.1]} 19... f5
{[%clk 0:01:56.5]} 20. f4 {[%clk 0:01:39.1]} 20... e4 {[%clk 0:01:54.6]} 21. Nf2
{[%clk 0:01:35.7]} 21... Bf6 {[%clk 0:01:47]} 22. b3 {[%clk 0:01:32.9]} 22...
Nc5 {[%clk 0:01:46.5]} 23. Rfe1 {[%clk 0:01:15.3]} 23... b6 {[%clk 0:01:45]} 24.
Bxc5 {[%clk 0:01:00.9]} 24... bxc5 {[%clk 0:01:38.8]} 25. Nd1 {[%clk 0:00:55.2]}
25... g5 {[%clk 0:01:28.6]} 26. g3 {[%clk 0:00:30.6]} 26... hxg3 {[%clk
0:01:22]} 27. hxg3 {[%clk 0:00:30.7]} 27... Rc7 {[%clk 0:01:22.6]} 28. Re2
{[%clk 0:00:22.5]} 28... Rh7+ {[%clk 0:01:15]} 29. Rh2 {[%clk 0:00:21.7]} 29...
Rff7 {[%clk 0:01:15.5]} 30. Kg1 {[%clk 0:00:19.1]} 30... Bd4+ {[%clk 0:01:11.8]}
31. Kf1 {[%clk 0:00:19.1]} 31... gxf4 {[%clk 0:00:56]} 32. gxf4 {[%clk
0:00:18.4]} 32... Rfg7 {[%clk 0:00:55.2]} 0-1